Cogmind - Beta 10.2 @@@ ROGUE MODE // 2021.08.08 @ 16:00:26 Player: Unholy Diver Result: Destroyed by as-63983 with Assembled Blade Performance ------------- Evolutions (1) 500 Regions Visited (4) 800 Robots Destroyed (56) 280 Value Destroyed (913) 913 Prototype IDs (0) 0 Alien Tech Used (0) 0 Bonus (70) 70 TOTAL SCORE: 2563 Bonus ------- Follower Combat Kills 70 Cogmind --------- Core Integrity 0/400 Matter 280/300 Energy 64/100 System Corruption 0% Temperature Cool (54) Movement Core (400) Ox7 Location -9/Mines Parts ------- > --- POWER (1) -------- (None) > --- PROPULSION (4) --- (None) > --- UTILITY (2) ------ Large Storage Unit Visual Processing Unit > --- WEAPON (2) ------- Great Maul Great Maul > --- INVENTORY (10) --- Faulty Heavy Ion Engine Compact Wheel Compact Wheel Flight Unit Flight Unit Heat Sink Heat Sink Peak State ------------ > --- POWER ------------ Improved Ion Engine > --- PROPULSION ------- Wheel Wheel Wheel Compact Wheel > --- UTILITY ---------- Large Storage Unit Visual Processing Unit > --- WEAPON ----------- Shock Rifle Shotgun > --- INVENTORY -------- Light Ion Engine Heavy Ion Engine Compact Wheel Flight Unit Flight Unit Heat Sink Heat Sink Particle Cannon Great Maul Great Maul [Rating: 15] Favorites ----------- Power Light Ion Engine Engine Light Ion Engine Propulsion Compact Wheel Wheel Compact Wheel Flight Unit Flight Unit Utility Visual Processing Unit Storage Large Storage Unit Processor Visual Processing Unit Weapon Light Assault Rifle Energy Gun EM Pulse Gun Energy Cannon Beam Cannon Ballistic Gun Light Assault Rifle Impact Weapon Great Maul Build | -11 -10 -10 -9 -9 ------- Run | Scr Mat Min Mat Min Slots Evolved 2 | . . . 2 . Power . | . . . . . Propulsion 2 | . . . 2 . Utility . | . . . . . Weapon . | . . . . . Parts Attached 45 | 8 7 1 13 16 Power 7 | 1 . . 3 3 Engine 7 | 1 . . 3 3 Core . | . . . . . Reactor . | . . . . . Propulsion 18 | 2 3 1 4 8 Treads . | . . . . . Leg . | . . . . . Wheel 15 | 2 3 1 4 5 Hover . | . . . . . Flight 3 | . . . . 3 Utility 4 | 2 2 . . . Device . | . . . . . Storage 3 | 2 1 . . . Processor 1 | . 1 . . . Hackware . | . . . . . Protection . | . . . . . Artifact . | . . . . . Weapon 16 | 3 2 . 6 5 Energy Gun 4 | 1 1 . 1 1 Energy Cannon 2 | . . . 1 1 Ballistic Gun 6 | 2 1 . 2 1 Ballistic Cannon . | . . . . . Launcher . | . . . . . Special Weapon . | . . . . . Impact Weapon 4 | . . . 2 2 Slashing Weapon . | . . . . . Piercing Weapon . | . . . . . Special Melee Weapon . | . . . . . Unidentified Prototypes . | . . . . . Parts Lost 19 | . 1 . 6 12 Power 2 | . . . . 2 Propulsion 10 | . . . 4 6 Utility . | . . . . . Weapon 7 | . 1 . 2 4 Highest Loss Streak 8 | . 1 . 2 8 Average Slot Usage (%) 89 | . 99 100 87 72 Engine 11 | . 14 14 11 9 Wheel 24 | . 28 28 32 8 Flight 2 | . . . . 11 Storage 12 | . 17 14 11 11 Processor 11 | . 10 14 11 11 Energy Gun 8 | . 5 14 4 10 Energy Cannon 1 | . . . 4 . Ballistic Gun 13 | . 22 14 10 10 Naked Turns . | . . . . . Heaviest Build 29 | 14 22 22 28 29 Greatest Support 64 | 26 32 32 64 52 Greatest Overweight (x) 8 | . . . 1 8 Average Overweight (x) . | . . . . 1 Largest Inventory Capacity 10 | 8 10 10 10 10 Average Capacity 9 | 5 6 10 10 10 Most Carried 10 | 5 7 8 10 10 Average Carried 7 | 2 5 7 8 8 Final Capacity 10 | 8 10 10 10 10 Final Carried 10 | 4 7 7 10 7 Class Distribution -------------------- 76% | Mutant 23% | Scavenger-Mutant Dominant Class ---------------- Mutant | -10/Materials Mutant | -10/Mines Scavenger-Mutant | -9/Materials Mutant | -9/Mines Resources | -11 -10 -10 -9 -9 ----------- Run | Scr Mat Min Mat Min Matter Collected 942 | 224 183 39 259 237 Remotely . | . . . . . Salvage Created 2068 | 71 433 119 823 622 Parts 122 | 3 33 6 58 22 Haulers Intercepted 2 | . 1 . 1 . Recyclers Shooed 9 | . 1 1 2 5 Parts Field Recycled . | . . . . . Retrieved Matter . | . . . . . Parts Self-Destructed . | . . . . . Prevented . | . . . . . Kills | -11 -10 -10 -9 -9 ------- Run | Scr Mat Min Mat Min Combat Hostiles Destroyed 32 | . 11 2 15 4 Guns 24 | . 11 2 7 4 Cannons 8 | . . . 8 . Classes Destroyed 11 | 1 4 . 5 1 Worker 3 | . . . 1 2 Builder 1 | . . . . 1 Tunneler 1 | . . . 1 . Hauler 2 | . 1 . 1 . Recycler 11 | 1 1 1 2 6 Operator 1 | . . . 1 . Watcher 5 | . 2 . 3 . Swarmer 18 | . 6 1 7 4 Grunt 10 | . 5 1 4 . Brawler 2 | . . . 2 . Sentry 2 | . . . 2 . Best Kill Streak 5 | 1 5 1 5 4 Combat Bots Only 4 | . 4 1 4 4 Max Kills in Single Turn 2 | 1 1 1 2 1 Gunslinging . | . . . . . Exploded . | . . . . . Melee . | . . . . . Uniques/NPCs Destroyed . | . . . . . Combat | -11 -10 -10 -9 -9 -------- Run | Scr Mat Min Mat Min Damage Taken 1680 | . 212 70 414 984 Core 471 | . 44 18 55 354 Absorbed by Shields . | . . . . . Core Remaining (%) 87 | 100 . 75 . . Volleys Fired 176 | 10 37 9 80 40 Largest 2 | 2 2 2 2 2 Hottest 83 | 70 70 60 83 73 Shots Fired 305 | 20 66 18 132 69 Gun 258 | 20 66 18 91 63 Cannon 47 | . . . 41 6 Launcher . | . . . . . Special . | . . . . . Kinetic 172 | 10 47 9 73 33 Thermal 76 | 10 19 . 41 6 Explosive . | . . . . . Electromagnetic 57 | . . 9 18 30 Robot Hit Streak 12 | 6 11 5 12 7 Robot Miss Streak 5 | 4 4 2 5 4 Penetration Max . | . . . . . Secondary Targets 3 | . 2 . . 1 Max Gunslinging Chain 1 | . 1 . . 1 Shots Hit Robots 193 | 12 44 12 85 40 Core Hits 80 | 2 24 5 31 18 Critical Hits 1 | . . . 1 . Critical Kills 1 | . . . 1 . Critical Parts Destroyed . | . . . . . Melee Attacks 1 | . . . . 1 Impact 1 | . . . . 1 Slashing . | . . . . . Piercing . | . . . . . Sneak Attacks . | . . . . . Combat Hostiles . | . . . . . Follow-up Attacks . | . . . . . Damage Inflicted 2769 | 109 436 100 1265 859 Guns 1841 | 109 431 95 660 546 Cannons 609 | . . . 525 84 Explosions 309 | . . . 80 229 Melee . | . . . . . Ramming 10 | . 5 5 . . Kinetic 990 | 47 257 46 413 227 Thermal 1154 | 62 174 . 605 313 Explosive . | . . . . . Electromagnetic 615 | . . 49 247 319 Impact . | . . . . . Slashing . | . . . . . Piercing . | . . . . . Highest Corruption . | . . . . . Average Corruption . | . . . . . Corruption Purged . | . . . . . Overload Shots . | . . . . . Overflow Damage 85 | . . . 38 47 Projectiles 7 | . . . 7 . Explosions 78 | . . . 31 47 Melee . | . . . . . Knockbacks . | . . . . . Impact . | . . . . . Kinetic . | . . . . . Secondary . | . . . . . Self-Inflicted Damage 73 | . 2 2 29 40 Shots 2 | . . . 1 1 Rammed 2 | . 1 1 . . Targets Rammed 2 | . 1 1 . . Kicked . | . . . . . Crushed . | . . . . . Highest Temperature 123 | 120 100 46 123 110 Average Temperature 29 | 47 40 18 28 17 Received Heat Transfer 237 | . 84 33 60 60 Siege Activations . | . . . . . Robots Corrupted . | . . . . . Combat Hostiles . | . . . . . Parts Fried 1 | . . . 1 . Impact Corruptions . | . . . . . Robots Melted . | . . . . . Combat Hostiles . | . . . . . Parts Melted 2 | . . . 2 . Heat Transferred 2311 | 185 518 . 1210 398 Parts Sabotaged . | . . . . . Parts Stolen . | . . . . . Parts Stripped . | . . . . . Power Chain Reactions 3 | . . . 1 2 Missiles Intercepted . | . . . . . Alert | -11 -10 -10 -9 -9 ------- Run | Scr Mat Min Mat Min Peak Influence 361 | 5 283 228 361 193 Initial 98 | . 3 31 30 98 Average 134 | 1 129 129 169 117 Maximum Alert Level 1 | . 1 1 1 . Low Security (%) 79 | 100 70 91 58 100 Level 1 20 | . 29 8 41 . Level 2 . | . . . . . Level 3 . | . . . . . Level 4 . | . . . . . Level 5 . | . . . . . High Security . | . . . . . Max Security . | . . . . . Squads Dispatched 3 | . 2 . 1 . Investigation 2 | . 2 . . . Extermination . | . . . . . Reinforcement 1 | . . . 1 . Assault . | . . . . . Garrison . | . . . . . Intercept . | . . . . . Construction Impeded . | . . . . . Haulers Reinforced . | . . . . . Stealth | -11 -10 -10 -9 -9 --------- Run | Scr Mat Min Mat Min Distress Signals 3 | . 1 . 2 . Communications Jammed . | . . . . . Distress Signals . | . . . . . Times Spotted 66 | . 13 10 30 13 Peak Tracking Total 6 | . 4 3 6 5 Tactical Retreats 4 | . . 2 2 . Traps | -11 -10 -10 -9 -9 ------- Run | Scr Mat Min Mat Min Traps Triggered 1 | . 1 . . . Indirectly . | . . . . . Trap Hack Attempts . | . . . . . Triggered . | . . . . . Disarmed . | . . . . . Reprogrammed . | . . . . . Reused . | . . . . . Traps Extracted . | . . . . . Installed . | . . . . . Triggered . | . . . . . Machines | -11 -10 -10 -9 -9 ---------- Run | Scr Mat Min Mat Min Machines Disabled 6 | . . . 3 3 Max in Single Turn 2 | . . . 1 2 Machines Sabotaged . | . . . . . Garrisons Compromised . | . . . . . Overloaded Fab Kills . | . . . . . Fab Network Shutdowns . | . . . . . Hacking | -11 -10 -10 -9 -9 --------- Run | Scr Mat Min Mat Min Machines Accessed 1 | . 1 . . . Terminals 1 | . 1 . . . Fabricators . | . . . . . Repair Stations . | . . . . . Recycling Units . | . . . . . Scanalyzers . | . . . . . Garrison Access . | . . . . . Total Hacks 3 | . 3 . . . Successful 2 | . 2 . . . Failed 1 | . 1 . . . Catastrophic . | . . . . . Database Lockouts . | . . . . . Manual . | . . . . . Terminals 3 | . 3 . . . Fabricators . | . . . . . Repair Stations . | . . . . . Recycling Units . | . . . . . Scanalyzers . | . . . . . Garrison Access . | . . . . . Terminal Hacks 2 | . 2 . . . Record 1 | . 1 . . . Dispatch Records 1 | . 1 . . . Fabricator Hacks . | . . . . . Repair Station Hacks . | . . . . . Recycling Unit Hacks . | . . . . . Scanalyzer . | . . . . . Garrison Access Hacks . | . . . . . Unauthorized Hacks . | . . . . . Terminals . | . . . . . Fabricators . | . . . . . Repair Stations . | . . . . . Recycling Units . | . . . . . Scanalyzers . | . . . . . Garrison Access . | . . . . . Data Cores Recovered . | . . . . . Used . | . . . . . Hacking Detections 1 | . 1 . . . Full Trace Events 1 | . 1 . . . Feedback Events . | . . . . . Feedback Blocked . | . . . . . Robot Schematics Acquired . | . . . . . Robots Built . | . . . . . Matter . | . . . . . Time . | . . . . . Total Robot Build Rating . | . . . . . Part Schematics Acquired . | . . . . . Parts Built . | . . . . . Matter . | . . . . . Time . | . . . . . Total Part Build Rating . | . . . . . Parts Repaired . | . . . . . Time . | . . . . . Parts Recycled . | . . . . . Recycled Matter . | . . . . . Retrieved Matter . | . . . . . Retrieved Components . | . . . . . Parts Scanalyzed . | . . . . . Part Schematics Acquired . | . . . . . Parts Damaged . | . . . . . Bothacking | -11 -10 -10 -9 -9 ------------ Run | Scr Mat Min Mat Min Used RIF Installer . | . . . . . Robots Hacked . | . . . . . Non-combat . | . . . . . Combat . | . . . . . Robot Hacks Applied . | . . . . . Relay Couplers Released . | . . . . . Robots Rewired . | . . . . . Allies Hacked . | . . . . . Hacks Repelled . | . . . . . Allies | -11 -10 -10 -9 -9 -------- Run | Scr Mat Min Mat Min Total Allies 3 | . . 3 . . Largest Group 3 | . . 3 . . Highest-Rated Group 40 | . . 40 . . Highest-Rated Ally 16 | . . 16 . . Total Orders . | . . . . . Ally Attacks 16 | . . 16 . . Total Damage 141 | . . 141 . . Kills 6 | . . 6 . . Allies Corrupted . | . . . . . Allies Melted . | . . . . . Intel | -11 -10 -10 -9 -9 ------- Run | Scr Mat Min Mat Min Robot Analysis Total . | . . . . . Derelict Logs Recovered 2 | . . 1 . 1 Drone Launches . | . . . . . Drone Recoveries . | . . . . . Exploration | -11 -10 -10 -9 -9 ------------- Run | Scr Mat Min Mat Min Turns Passed 2927 | 122 565 653 934 653 Spaces Moved 1793 | 84 323 488 614 284 Core 21 | 2 . . . 19 Treads . | . . . . . Legs . | . . . . . Wheels 1657 | 82 323 488 614 150 Hover . | . . . . . Flight 115 | . . . . 115 Fastest Speed 50 | 50 90 100 86 80 Average Speed 108 | 88 94 100 93 177 Slowest Speed 450 | 90 100 100 100 450 Overloaded Moves . | . . . . . Propulsion Burnouts . | . . . . . Robots Hopped . | . . . . . Cave-ins Triggered . | . . . . . Exploration Rate (%) 43 | 4 49 73 42 51 Regions Visited 4 Branch Regions 2 Pre-discovered Areas 1 | . . 1 . . Known Exits Taken . | . . . . . Unknown Exits Taken 4 | 1 1 1 1 . Scrap Searched 2 | . . 1 . 1 Spaces Dug . | . . . . . Terrain Destroyed 19 | . . . 1 18 Melee . | . . . . . Projectile . | . . . . . AOE 19 | . . . 1 18 Terrain Rammed . | . . . . . Walls Destroyed . | . . . . . Machines Disabled . | . . . . . Actions | -11 -10 -10 -9 -9 --------- Run | Scr Mat Min Mat Min Total 2486 | 112 522 637 849 366 Wait 416 | . 145 135 126 10 Move 1789 | 83 322 487 613 284 Hop . | . . . . . Pick Up 40 | 11 6 2 13 8 Fast Attach 2 | . . . . 2 Attach 24 | 7 1 . 6 10 Detach 3 | . . . . 3 Swap 19 | 1 6 1 7 4 Drop 14 | . 4 2 4 4 Fire 176 | 10 37 9 80 40 Melee 1 | . . . . 1 Ram 2 | . 1 1 . . Kick . | . . . . . Crush . | . . . . . Escape Stasis . | . . . . . Rewire . | . . . . . Trap . | . . . . . Miscellaneous . | . . . . . Route ------- -11/Scrapyard -10/Materials (discovered 2 exits: [*Mat] / [*Min]) -10/Mines -9/Materials -9/Mines (discovered 1 exit: [*Mat]) History --------- Turn | Location | Event 12 | -11/Scrapyard | Discovered new exit (range 16) 123 | -11/Scrapyard | Entered Materials 296 | -10/Materials | Discovered new exit (range 17) 303 | -10/Materials | Build established: Mutant 557 | -10/Materials | Discovered new exit (range 16) 688 | -10/Materials | Entered Mines 691 | -10/Mines | Met a Derelict bent on vengeance 701 | -10/Mines | Assisted by bots powering up and referring to "LRC-V3" 730 | -10/Mines | Learned location of Zion (-6) 1279 | -10/Mines | Received a Rocket Launcher from a helpful Derelict 1308 | -10/Mines | Discovered new exit (range 5) 1341 | -10/Mines | Entered Materials 1341 | -9/Materials | Evolved 2 slots: Propulsion x2 1734 | -9/Materials | Discovered new exit (range 7) 2158 | -9/Materials | Build established: Scavenger-Mutant 2275 | -9/Materials | Entered Mines 2331 | -9/Mines | Lost 4 parts (3n1w) 2573 | -9/Mines | Learned Materials emergency access door positions 2642 | -9/Mines | Found a hidden stash of uninstalled traps 2738 | -9/Mines | Build established: Mutant 2890 | -9/Mines | Discovered new exit (range 17) 2897 | -9/Mines | Assembled infested the area 2909 | -9/Mines | Core integrity fell below 50% 2921 | -9/Mines | Core integrity fell below 20% 2928 | -9/Mines | Destroyed by as-63983 with Assembled Blade Last Messages --------------- Com. Wheel destroyed. Wheel destroyed. Shock Rifle destroyed. D-53 Grenadier destroyed. The unstable cave ceiling collapses. Wheel destroyed. Shotgun destroyed. as-09717 destroyed. The unstable cave ceiling collapses. as-60848 destroyed. as-17188 destroyed. as-07060 destroyed. The unstable cave ceiling collapses. Acquired 2 matter. D-53 Grenadier destroyed. The unstable cave ceiling collapses. Particle Cannon destroyed. Wheel destroyed. Imp. Ion Engine destroyed. The unstable cave ceiling collapses. Map ----- +----------------------------------------------------+ | | | | | | | ??????????????????????????????????? | | ??????????????????????????????????? | | ??????????????????????????????????? | | ??????????????????????????????????? | | ??????????????????????????????????? | | ??????????????????????????????????? | | ??????????????????????????????????? | | ??????????????????????????????????? | | ??????????????????????????????????? | | ???????????????????#??????????????? | | ?????????????????## ??????????????? | | ????????????????## ??????????????? | | ????????????????# ??????????????? | | ????????????????# ??????????????? | | ????????????????# #??????????????? | | ?????????##?????# #????###""###??? | | ????###### ????? ###??# X #??? | | ????? ????# ## ### ###? | | ????? ???# # #? | | ????????# ### #? | | ?????????# #? | | ???????????????# # #k< #? | | ????????????##### @ #? | | ????######### # aa #? | | ????# # # # #? | | ????# ####### #### a #? | | ????# #????? ## #? | | ????# #????# """ ?##### #? | | ????# #????# """ ??????# #? | | ????# ###??# """ #????####### ##? | | ????# #??# """ #??????????? #?? | | ???## #??# #????????????#?? | | ???# ##?#########??????????????? | | ???# ##???????????????????????? | | ???# ##??????????????????????? | | ???# #??????????????????????? | | ???# ##?????????????????????? | | ???# ##????????????????????? | | #??# #????????????????????? | | #??# #????????????????????? | | #### ##????????????????????? | | ## ####?????????????????????? | | ###????????????????????????? | | ##??????????????????????????? | | =% ! #???????????????????????????? | | **%*### #???????????????????????? | | %* #???????????????????????? | +----------------------------------------------------+ Best States ------------- Heat Dissipation 28 Energy Generation 12 Energy Capacity 265 Matter Stores 300 Matter Capacity 300 Sight Range 18 Terrain Scan Density 10 Evasion (%) 44 Item Schematics ----------------- None Robot Schematics ------------------ None Fabricated ------------ Nothing Alien Tech Used ----------------- None Achievements -------------- None Challenges ------------ None Game ------ Seed ParticleGammaProcessor Manual? 0 Play Time 00:27:21 Cumulative 9.4 hours Start 2021.08.08 @ 15:29:00 End 2021.08.08 @ 16:00:26 Sessions 1 Manual Loads 0 Difficulty Rogue Special Mode None Game No. 8 Rogue 6 Adventurer 2 Explorer 0 Win Type - Total 0 Types 0/0/0/0/0/0/0/0/0 Lore% 5 Gallery% 16 Achievement% 11 Wizard Run 0 Options --------- ASCII 0 Keyboard 0 Movement Mouse Keybinds 0 Fullscreen 1 Font 18/Smallcaps Map View 76x50 Tactical HUD 0 Map Filters NONE Filters NONE Steam 1 RUN: 957d1865-98c1-4b8e-af29-cd58ffcfa656